bitfinex-derivatives/quotes_SOLF0:USTF0_20240913
["timestamp","ask_amount","ask_price","bid_price","bid_amount"]
[1726267519222,3.5823,139.5,139.45,5.99718941]
[1726267519223,1.3297,139.54,139.45,5.99718941]
[1726267519419,1.4278,139.53,139.45,5.99718941]
[1726267519617,17.54207905,139.53,139.45,5.99718941]
[1726267519820,1.4329,139.52,139.45,5.99718941]
[1726267520122,1.4329,139.52,139.46,6.00550996]
[1726267520317,3.5826,139.49,139.46,3.5831]
[1726267520721,1.4329,139.52,139.46,3.5831]
[1726267520921,1.4329,139.52,139.43,3.52775249]
[1726267521124,39.06735848,139.52,139.4,4.0496]
[1726267521326,16.11445848,139.51,139.41,6.00706039]
[1726267521526,3.5831,139.47,139.44,3.5836]
[1726267524127,3.5827,139.49,139.44,3.5836]
[1726267524325,1.4329,139.52,139.45,3.5834]
[1726267524527,1.4329,139.52,139.43,3.61945639]
[1726267524728,1.4329,139.52,139.4,4.0496]
[1726267524929,3.5824,139.5,139.46,3.5831]
[1726267525120,3.5824,139.5,139.46,7.14439878]
[1726267525321,1.4329,139.52,139.46,3.56129878]
[1726267525525,1.4329,139.52,139.4,4.0496]
[1726267525737,1.4329,139.52,139.41,6.0057929]
[1726267525931,1.4329,139.52,139.42,6.0057929]
[1726267526119,3.5821,139.51,139.43,6.0057929]
[1726267526323,19.69800882,139.51,139.44,6.0057929]
[1726267526528,3.5821,139.51,139.45,6.0057929]
[1726267526733,3.5821,139.51,139.46,3.5831]
[1726267528242,3.5821,139.51,139.45,3.50431514]
[1726267528423,3.5821,139.51,139.46,6.00042933]
[1726267528735,5.0147,139.52,139.47,3.5827]
[1726267528935,5.0147,139.52,139.47,7.16964657]
[1726267529234,5.0147,139.52,139.47,3.5827]
[1726267529626,5.0147,139.52,139.47,7.22375536]
[1726267532540,5.0147,139.52,139.48,3.5826]
[1726267532727,5.0147,139.52,139.48,7.1391888]
[1726267532728,21.12934372,139.52,139.48,7.1391888]
[1726267532927,5.0147,139.52,139.48,7.1391888]
[1726267533745,1.4329,139.52,139.49,3.5824]
[1726267534237,16.11320894,139.53,139.5,3.582]
[1726267534928,3.5813,139.54,139.5,3.582]
[1726267535237,3.5813,139.54,139.51,3.5819]
[1726267535934,16.11032627,139.56,139.5,3.65467214]
[1726267536129,16.11032627,139.56,139.4,4.0496]
[1726267536334,16.11032627,139.56,139.41,7.3110499]
[1726267536535,2.61,139.57,139.4,4.0496]
[1726267536536,2.61,139.57,139.42,7.3110499]
[1726267536728,2.61,139.57,139.43,14.4787499]
[1726267536929,1.3022,139.57,139.44,5.99436821]
[1726267537130,1.3022,139.57,139.53,3.5813]
[1726267537837,1.3022,139.57,139.53,7.14234752]
[1726267538037,3.5802,139.58,139.53,7.14234752]
[1726267538338,3.5801,139.59,139.53,7.14234752]
[1726267538534,17.48859147,139.6,139.53,7.14234752]
[1726267538833,17.48859147,139.6,139.53,3.56104752]
[1726267538834,3.5804,139.57,139.53,3.56104752]
[1726267539039,3.5804,139.57,139.52,3.5816]
[1726267539636,3.5802,139.58,139.53,3.49406745]
[1726267539932,17.48859147,139.6,139.47,5.99128908]
[1726267540137,19.68849147,139.59,139.53,3.5812]
[1726267540338,3.58,139.59,139.54,3.54420937]
[1726267540838,3.58,139.59,139.51,5.99128908]
[1726267541039,3.58,139.59,139.51,3.64307755]
[1726267541235,3.58,139.59,139.5,1.3772]
[1726267541833,3.58,139.59,139.53,3.5812]
[1726267542138,1.3801,139.6,139.5,4.98445575]
[1726267542628,1.3801,139.6,139.53,3.5811]
[1726267542832,17.48815224,139.6,139.53,3.5811]
[1726267543135,3.5798,139.58,139.53,3.5811]
[1726267543838,3.5801,139.57,139.53,3.5811]
[1726267544641,3.5802,139.57,139.52,3.5812]
[1726267544842,3.5802,139.57,139.5,4.98445575]
[1726267545238,3.5802,139.57,139.52,3.5812]
[1726267545833,3.5799,139.58,139.53,3.5809]
[1726267546840,3.5799,139.58,139.54,3.5808]
[1726267549647,1.3801,139.6,139.55,3.5804]
[1726267550042,3.5798,139.58,139.55,3.5804]
[1726267550844,3.5798,139.58,139.54,3.5807]
[1726267551343,1.3801,139.6,139.5,4.98445575]
[1726267551738,21.52,139.59,139.5,4.98445575]
[1726267551938,3.5802,139.57,139.5,4.98445575]
[1726267552435,1.3801,139.6,139.5,4.98445575]
[1726267552436,3.5799,139.58,139.53,3.5809]
[1726267553043,3.5799,139.58,139.54,3.5808]
[1726267555937,3.5796,139.59,139.54,3.5808]
[1726267556145,1.3801,139.6,139.54,3.5808]
[1726267557749,3.5798,139.58,139.54,3.5808]
[1726267558147,1.3801,139.6,139.54,3.5808]
[1726267559856,3.5799,139.58,139.54,3.5808]
[1726267560048,1.3801,139.6,139.54,3.5808]
[1726267560442,3.5802,139.57,139.53,3.581]
[1726267561055,3.5802,139.57,139.54,3.5808]
[1726267563757,1.3801,139.6,139.53,3.581]
[1726267563956,1.3801,139.6,139.5,4.98445575]
[1726267564546,3.5802,139.57,139.53,3.5811]
[1726267565557,3.5804,139.56,139.53,3.5811]
[1726267565859,1.3801,139.6,139.52,3.5813]
[1726267566658,3.5806,139.55,139.52,3.5813]
[1726267567161,22.9001,139.6,139.51,3.5815]
[1726267567364,22.9001,139.6,139.46,7.43047111]
[1726267567557,21.52,139.58,139.49,3.582]
[1726267567756,3.5814,139.52,139.49,3.582]
[1726267568149,1.4083,139.57,139.5,7.13926887]
[1726267568455,3.581,139.54,139.46,1.4389]
[1726267568661,3.581,139.54,139.46,7.43669863]
[1726267569256,1.3997,139.56,139.5,3.5817]
[1726267569556,1.3997,139.56,139.5,7.16224448]
[1726267569757,3.5804,139.56,139.52,3.5812]
[1726267570159,3.5804,139.56,139.51,1.3271]
[1726267570658,3.5804,139.56,139.52,3.5812]
[1726267570862,3.5806,139.55,139.53,3.57445451]
[1726267571050,3.5806,139.55,139.52,3.5812]
[1726267571254,3.5806,139.55,139.52,3.53433235]
[1726267571457,3.5809,139.54,139.51,4.9086]
[1726267571752,3.5809,139.54,139.52,3.65935586]
[1726267571956,3.5809,139.54,139.51,4.9086]
[1726267572158,3.5809,139.54,139.52,3.51055071]
[1726267572551,3.5807,139.55,139.52,3.51055071]
[1726267572958,3.5807,139.55,139.51,4.9086]
[1726267573466,3.5807,139.55,139.51,8.44529539]
[1726267575961,3.5808,139.54,139.51,7.11819539]
[1726267576463,3.5808,139.54,139.51,3.53669539]
[1726267576662,3.5808,139.54,139.5,3.5817]
[1726267577064,3.5808,139.54,139.51,3.5816]
[1726267577262,3.5808,139.54,139.51,7.1670033]
[1726267578874,3.5814,139.52,139.47,1.3347]
[1726267579072,21.52,139.57,139.47,1.3347]
[1726267579468,3.5813,139.53,139.49,3.5819]
[1726267580174,3.5814,139.52,139.49,3.5819]
[1726267580765,3.5812,139.53,139.5,3.5818]
[1726267580968,3.5812,139.53,139.51,3.64154136]
[1726267581468,3.5812,139.53,139.49,3.582]
[1726267581662,3.5812,139.53,139.5,3.58735092]
[1726267581867,3.5809,139.54,139.5,3.58735092]
[1726267582057,3.5809,139.54,139.5,3.5818]
[1726267582262,3.5809,139.54,139.51,3.65147472]
[1726267583574,3.5811,139.53,139.5,3.5818]
[1726267584067,3.5811,139.53,139.5,7.1935108]
[1726267584273,3.5811,139.53,139.49,3.582]
[1726267584468,3.5811,139.53,139.47,1.3347]
[1726267584665,3.581,139.54,139.47,1.3347]
[1726267584860,21.52,139.57,139.49,3.5819]
[1726267585063,21.52,139.57,139.5,3.59282376]
[1726267585258,3.5811,139.53,139.47,1.3347]
[1726267585475,3.5811,139.53,139.49,3.5819]
[1726267585774,3.5811,139.53,139.5,3.58279494]
[1726267585972,3.5811,139.53,139.49,3.582]
[1726267586171,3.5811,139.53,139.5,3.60822516]
[1726267587275,1.3706,139.58,139.5,3.5816]
[1726267587471,1.3706,139.58,139.51,3.61252322]
[1726267587667,22.8906,139.58,139.51,3.61252322]
[1726267587864,3.5809,139.54,139.51,3.5816]
[1726267588065,3.5809,139.54,139.51,7.17800548]
[1726267588774,3.5807,139.55,139.51,7.17800548]
[1726267589073,3.5804,139.56,139.52,3.5813]
[1726267589279,2.7507,139.6,139.49,5.99906078]
[1726267589471,24.2707,139.6,139.5,7.36705826]
[1726267589671,24.2707,139.6,139.5,4.87377311]
[1726267589867,3.58,139.58,139.53,3.5809]
[1726267590279,24.2707,139.6,139.53,3.5809]
[1726267590579,3.5801,139.57,139.53,3.5809]
[1726267592077,3.5803,139.58,139.54,3.5812]
[1726267595675,3.5805,139.57,139.53,3.5814]
[1726267596268,3.5803,139.58,139.54,3.5811]
[1726267601880,19.68805283,139.58,139.54,3.5811]
[1726267602085,3.5803,139.58,139.54,3.5811]
[1726267603185,19.6878415,139.59,139.55,3.5809]
[1726267603975,16.1078415,139.58,139.55,3.5809]
[1726267604287,3.58,139.59,139.55,3.5809]
[1726267607978,19.6878415,139.59,139.55,3.5809]
[1726267608185,16.1078415,139.58,139.55,3.5809]
[1726267609079,3.58,139.59,139.55,3.5809]
[1726267612284,19.6878415,139.59,139.55,3.5809]
[1726267612590,16.1078415,139.58,139.55,3.5809]
[1726267613084,3.58,139.59,139.55,3.5809]
[1726267613992,3.5802,139.58,139.55,3.5809]
[1726267614585,3.5802,139.58,139.54,3.5811]
[1726267614586,19.6881415,139.58,139.54,3.5811]
[1726267614783,16.1078415,139.57,139.5,1.3705]
[1726267615090,19.6881415,139.58,139.54,3.581]
[1726267616394,3.5805,139.57,139.54,3.581]
[1726267616779,19.6883415,139.57,139.54,3.581]
[1726267617095,3.5805,139.57,139.54,3.581]
[1726267618484,19.68972924,139.57,139.54,3.581]
[1726267618687,16.10922924,139.56,139.54,3.581]
[1726267619302,3.5805,139.57,139.54,3.581]
[1726267621597,37.62922924,139.58,139.52,3.63887041]
[1726267621798,3.5808,139.56,139.53,3.5814]
[1726267623001,19.69002924,139.56,139.53,3.5814]
[1726267623192,3.5808,139.56,139.53,3.5814]
[1726267623500,4.8886,139.57,139.51,3.5482568]
[1726267623798,4.8886,139.57,139.47,1.3347]
[1726267624098,4.8886,139.57,139.53,3.5812]
[1726267624799,17.41803878,139.57,139.52,3.5816]
[1726267625290,3.5809,139.56,139.52,3.5816]
[1726267626293,3.5809,139.56,139.53,3.5814]
[1726267627497,38.93647037,139.57,139.47,4.88223727]
[1726267627795,16.11007766,139.56,139.48,5.99779184]
[1726267627997,16.11007766,139.56,139.49,5.99779184]
[1726267628302,16.11007766,139.56,139.47,4.88223727]
[1726267628303,16.11007766,139.56,139.5,5.99779184]
[1726267628506,16.11007766,139.56,139.51,5.99779184]
[1726267628795,3.581,139.55,139.47,4.88223727]
[1726267628995,3.581,139.55,139.48,5.99971445]
[1726267629201,19.69107766,139.55,139.51,3.5818]
[1726267629496,3.581,139.55,139.51,3.5818]
[1726267630204,25.1008,139.56,139.47,4.88223727]
[1726267630507,25.1008,139.56,139.48,5.99821429]
[1726267630701,25.1008,139.56,139.51,3.5817]
[1726267631186,3.581,139.55,139.51,3.5817]
[1726267632398,21.52,139.56,139.47,4.88223727]
[1726267632596,25.1008,139.56,139.52,3.5815]
[1726267633204,3.5808,139.56,139.52,3.5815]
[1726267633495,1.3362,139.55,139.47,4.88223727]
[1726267633700,1.3362,139.55,139.48,5.9978882]
[1726267633898,4.9172,139.55,139.51,3.5817]
[1726267634203,4.9172,139.55,139.52,5.99736792]
[1726267634204,26.4372,139.55,139.52,5.99736792]
[1726267634500,26.4372,139.55,139.51,3.5818]
[1726267634691,26.4372,139.55,139.47,4.88223727]
[1726267634692,3.5812,139.54,139.47,4.88223727]
[1726267634999,3.5812,139.54,139.5,3.5821]
[1726267635204,3.5812,139.54,139.51,5.99837688]
[1726267635402,3.5812,139.54,139.47,4.88223727]
[1726267635603,3.5812,139.54,139.48,5.99810882]
[1726267635801,4.9172,139.55,139.51,3.5819]
[1726267636106,1.3362,139.55,139.52,5.99810882]
[1726267636294,1.3362,139.55,139.47,4.88223727]
[1726267636489,16.1076408,139.59,139.48,5.99788399]
[1726267636703,18.8137408,139.62,139.49,5.99788399]
[1726267636899,3.5806,139.57,139.51,3.5818]
[1726267637105,3.5806,139.57,139.52,5.99688053]
[1726267637298,2.7061,139.62,139.53,5.99688053]
[1726267637495,2.7061,139.62,139.52,3.5815]
[1726267637496,21.52,139.61,139.52,3.5815]
[1726267638006,21.52,139.59,139.52,3.5815]
[1726267638206,3.5807,139.56,139.52,3.5815]
[1726267639611,3.5807,139.56,139.53,3.5814]
[1726267639909,3.5807,139.56,139.47,4.88223727]
[1726267640107,3.5807,139.56,139.51,3.5818]
[1726267640409,3.5807,139.56,139.52,5.99857276]
[1726267640597,3.5807,139.56,139.47,4.88223727]
[1726267640909,18.86776606,139.57,139.48,5.99881785]
[1726267641203,2.7593,139.57,139.49,5.99881785]
[1726267641508,2.7593,139.57,139.47,4.88223727]
[1726267641704,2.7593,139.57,139.48,5.99939382]
[1726267642009,2.7593,139.57,139.49,5.99939382]
[1726267642207,3.5811,139.55,139.51,3.5819]
[1726267644808,24.2793,139.57,139.47,4.88223727]
[1726267645107,16.10973274,139.56,139.48,5.99896624]
[1726267645313,16.10973274,139.56,139.49,5.99896624]
[1726267645512,16.10973274,139.56,139.5,5.99896624]
[1726267645713,16.10973274,139.56,139.5,3.5822]
[1726267646214,3.5814,139.54,139.5,3.5822]
[1726267646911,16.10973274,139.56,139.51,5.99870198]
[1726267647117,16.10973274,139.56,139.47,4.88223727]
[1726267647316,3.5809,139.56,139.52,3.5815]
[1726267647812,2.7593,139.57,139.5,3.582]
[1726267648017,3.5816,139.53,139.5,3.582]
[1726267649808,3.5816,139.53,139.49,3.5823]
[1726267650013,3.5816,139.53,139.5,5.99701209]
[1726267650214,3.5816,139.53,139.49,3.5823]
[1726267650415,3.5816,139.53,139.5,5.99725321]
[1726267650618,3.5816,139.53,139.49,3.5823]
[1726267650919,3.5816,139.53,139.5,5.99692958]
[1726267651109,3.5813,139.54,139.5,3.582]
[1726267652719,3.5813,139.54,139.51,3.5819]
[1726267653116,3.5815,139.53,139.5,3.5822]
[1726267654539,3.5813,139.54,139.5,3.5822]
[1726267658739,3.5815,139.53,139.5,3.5822]
[1726267659338,3.5813,139.54,139.47,4.88223727]
[1726267659635,3.5813,139.54,139.48,5.99613691]
[1726267659835,3.5813,139.54,139.49,5.99613691]
[1726267660039,3.5813,139.54,139.5,9.57823691]
[1726267660239,3.5813,139.54,139.5,3.5821]
[1726267660444,3.5815,139.53,139.5,3.5821]
[1726267664444,3.5813,139.54,139.51,3.5818]
[1726267664641,2.7593,139.57,139.51,3.5818]
[1726267664847,2.7593,139.57,139.47,6.30413727]
[1726267665050,2.7593,139.57,139.48,5.99636487]
[1726267665346,2.7593,139.57,139.49,5.99636487]
[1726267665548,2.7593,139.57,139.47,6.30413727]
[1726267665748,2.7593,139.57,139.48,5.99577194]
[1726267665941,2.7593,139.57,139.49,5.99577194]
[1726267666143,2.7593,139.57,139.5,5.99577194]
[1726267666339,2.7593,139.57,139.51,5.99577194]
[1726267666547,3.5808,139.56,139.53,3.5813]
[1726267681959,3.5808,139.56,139.54,3.5812]
[1726267682458,16.10818476,139.59,139.53,3.58305211]
[1726267682659,16.10818476,139.61,139.54,5.99042633]
[1726267682865,3.5801,139.59,139.47,2.7566]
[1726267683057,3.5801,139.59,139.55,3.5808]
[1726267683360,37.62818476,139.61,139.47,2.7566]
[1726267683662,3.5806,139.57,139.48,5.9933673]
[1726267683863,3.5806,139.57,139.49,5.9933673]
[1726267684156,3.5806,139.57,139.53,3.5813]
[1726267685261,3.5803,139.58,139.54,3.5811]
[1726267685762,37.62706786,139.61,139.54,3.5811]
[1726267685954,16.10706786,139.59,139.54,3.5811]
[1726267686261,16.10706786,139.6,139.55,3.5808]
[1726267686461,3.5801,139.59,139.55,3.5808]
[1726267688156,3.5801,139.59,139.56,3.5805]
[1726267688563,19.68716786,139.59,139.56,3.5805]
[1726267688763,16.10706786,139.58,139.56,3.5805]
[1726267689065,3.5802,139.58,139.55,3.5808]
[1726267689260,19.68726786,139.58,139.55,3.5808]
[1726267689464,3.5802,139.58,139.55,3.5808]
[1726267690164,16.10720698,139.61,139.55,3.5808]
[1726267690665,3.5804,139.58,139.55,3.5808]
[1726267694058,3.5804,139.58,139.56,3.5807]
[1726267694466,3.5804,139.58,139.47,2.7566]
[1726267694764,3.5804,139.58,139.48,5.99155679]
[1726267694964,3.5804,139.58,139.49,5.99155679]
[1726267695165,3.5811,139.55,139.5,5.99155679]
[1726267695352,3.5811,139.55,139.51,5.99155679]
[1726267695552,3.5811,139.55,139.52,5.99155679]
[1726267695868,3.5811,139.55,139.51,3.5818]
[1726267696066,3.5811,139.55,139.52,5.99380057]
[1726267696368,3.5811,139.55,139.51,3.5818]
[1726267699669,3.5813,139.54,139.51,3.5818]
[1726267703864,3.5813,139.54,139.52,6.00041366]
[1726267704166,3.5813,139.54,139.51,3.5818]
[1726267704373,3.5813,139.54,139.52,6.0004532]
[1726267704571,3.5813,139.54,139.51,3.5818]
[1726267705574,3.5815,139.53,139.5,3.5821]
[1726267705768,3.5815,139.53,139.51,6.00345932]
[1726267705969,3.5815,139.53,139.5,3.5821]
[1726267706264,3.5817,139.52,139.51,6.00745865]
[1726267706470,3.5817,139.52,139.49,3.5823]
[1726267706671,3.5817,139.52,139.5,6.00758446]
[1726267706867,3.5817,139.52,139.49,3.5823]
[1726267707072,3.5817,139.52,139.5,6.00743974]
[1726267707273,3.5817,139.52,139.49,3.5823]
[1726267707475,3.5817,139.52,139.5,6.00635383]
[1726267707674,3.5817,139.52,139.49,3.5823]
[1726267707875,3.5817,139.52,139.5,6.00530644]
[1726267708067,3.5817,139.52,139.49,3.5823]
[1726267708268,3.5815,139.53,139.5,9.58742012]
[1726267708474,1.3937,139.57,139.5,3.5822]
[1726267708674,17.50333402,139.57,139.5,3.5822]
[1726267708870,3.5813,139.54,139.51,3.5819]
[1726267710777,3.5815,139.53,139.5,3.5821]
[1726267710974,1.3937,139.57,139.47,6.38007405]
[1726267711180,17.5035637,139.57,139.48,6.00519284]
[1726267711479,3.5814,139.54,139.51,3.5819]
[1726267712380,3.5811,139.55,139.52,3.5816]
[1726267713372,3.5812,139.54,139.52,3.5816]
[1726267718686,3.5812,139.54,139.51,3.5818]
[1726267722879,3.5814,139.53,139.5,3.5821]
[1726267723184,21.52,139.57,139.51,6.00279021]
[1726267723381,3.5817,139.52,139.49,3.5823]
[1726267723688,3.5817,139.52,139.5,6.00507697]
[1726267723980,3.5817,139.52,139.51,6.00507697]
[1726267724186,3.5817,139.52,139.49,3.5823]
[1726267724390,3.5817,139.52,139.5,6.00558444]
[1726267724578,3.5815,139.53,139.5,3.5821]
[1726267725287,3.5815,139.53,139.51,6.00499105]
[1726267725583,3.5815,139.53,139.5,3.5821]
[1726267725786,3.5815,139.53,139.51,6.00467068]
[1726267726084,3.5815,139.53,139.5,3.5821]
[1726267726287,3.5815,139.53,139.51,6.00437209]
[1726267726490,3.5815,139.53,139.5,3.5821]
[1726267726691,3.5815,139.53,139.51,6.00440804]
[1726267726983,3.5815,139.53,139.5,3.5821]
[1726267727374,3.5815,139.53,139.51,6.00444414]
[1726267727578,3.5815,139.53,139.5,3.5821]
[1726267727774,3.5815,139.53,139.51,6.00439265]
[1726267727979,3.5815,139.53,139.5,3.5821]
[1726267734696,3.5813,139.54,139.5,3.5821]
[1726267734897,16.11009056,139.56,139.5,3.5821]
[1726267735196,3.5814,139.54,139.5,3.5821]
[1726267735894,3.5815,139.53,139.5,3.5821]
[1726267739708,3.5814,139.54,139.5,3.5821]
[1726267740203,3.9353,139.58,139.47,6.38007405]
[1726267740507,3.9353,139.58,139.48,6.00615991]
[1726267740508,3.581,139.55,139.48,6.00615991]
[1726267740700,3.581,139.55,139.51,3.5817]
[1726267741105,3.5808,139.56,139.47,6.38007405]
[1726267741306,3.9353,139.58,139.48,6.00383634]
[1726267741601,3.9353,139.58,139.49,6.00383634]
[1726267741812,3.5811,139.55,139.52,3.5815]
[1726267741999,3.5811,139.55,139.53,6.00383634]
[1726267742205,3.5811,139.55,139.52,3.5815]
[1726267742599,3.5808,139.56,139.52,3.5815]
[1726267744007,3.5808,139.56,139.53,6.01926014]
[1726267744202,3.5808,139.56,139.52,3.5815]
[1726267744407,3.5808,139.56,139.53,6.02123238]
[1726267744603,3.5808,139.56,139.52,3.5815]
[1726267745103,3.5808,139.56,139.53,6.02119354]
[1726267745306,3.5808,139.56,139.52,3.5815]
[1726267745499,3.5808,139.56,139.53,6.0215582]
[1726267745704,3.5808,139.56,139.52,3.5815]
[1726267746014,1.3107,139.58,139.53,6.0200077]
[1726267746307,1.3107,139.58,139.54,6.0200077]
[1726267746514,1.3107,139.58,139.47,6.38007405]
[1726267746713,4.8909,139.58,139.48,6.01401347]
[1726267747004,4.8909,139.58,139.49,6.01401347]
[1726267747412,4.8909,139.58,139.54,3.581]
[1726267751008,3.5804,139.57,139.54,3.581]
[1726267751207,1.3107,139.58,139.47,6.38007405]
[1726267751405,3.5808,139.56,139.48,6.00849267]
[1726267751802,3.5808,139.56,139.49,6.00849267]
[1726267752006,3.5808,139.56,139.5,6.00849267]
[1726267752211,3.5808,139.56,139.51,6.00849267]
[1726267752412,3.5808,139.56,139.52,9.58999267]
[1726267752607,3.5808,139.56,139.52,3.5815]
[1726267753215,3.5808,139.56,139.53,3.5814]
[1726267754510,3.581,139.55,139.52,3.5816]
[1726267754818,3.581,139.55,139.47,6.38007405]
[1726267755014,3.5808,139.56,139.52,3.5815]
[1726267755617,3.581,139.55,139.52,3.5815]
[1726267755917,3.581,139.55,139.51,3.5819]
[1726267756114,3.581,139.55,139.52,6.00588489]
[1726267756314,3.5807,139.56,139.47,6.38007405]
[1726267756520,3.5807,139.56,139.48,6.00575152]
[1726267756722,3.5807,139.56,139.49,6.00575152]
[1726267756921,3.5811,139.55,139.5,6.00575152]
[1726267757213,3.5811,139.55,139.51,6.00575152]
[1726267757523,3.5811,139.55,139.52,6.00575152]
[1726267757717,3.5811,139.55,139.47,6.38007405]
[1726267757916,3.5811,139.55,139.51,3.5817]
[1726267758219,3.5811,139.55,139.52,6.00525557]
[1726267758418,3.5811,139.55,139.47,6.38007405]
[1726267758624,3.5811,139.55,139.48,6.00409696]
[1726267758822,3.5811,139.55,139.49,6.00409696]
[1726267759023,3.5811,139.55,139.5,6.00409696]
[1726267759225,3.5811,139.55,139.51,3.5817]
[1726267759416,3.5811,139.55,139.52,6.00435155]
[1726267759616,3.5811,139.55,139.47,6.38007405]
[1726267759813,3.5811,139.55,139.51,3.5817]
[1726267760017,3.5811,139.55,139.52,6.00407548]
[1726267760216,3.5811,139.55,139.51,3.5817]
[1726267760427,3.5811,139.55,139.52,6.00460865]
[1726267760623,3.5813,139.54,139.52,6.00460865]
[1726267760925,3.5813,139.54,139.51,3.5817]
[1726267761124,3.5813,139.54,139.5,3.5821]
[1726267761327,3.5813,139.54,139.51,6.00419294]
[1726267761515,3.5813,139.54,139.5,3.5821]
[1726267761719,3.5813,139.54,139.51,6.00448121]
[1726267761921,3.5813,139.54,139.51,3.582]
[1726267764330,1.3644,139.57,139.5,3.5821]
[1726267764521,22.8844,139.57,139.51,6.00287535]
[1726267764722,21.52,139.55,139.5,3.5821]
[1726267764925,3.5814,139.54,139.51,6.00277229]
[1726267765130,21.52,139.55,139.5,3.5821]
[1726267765433,22.8844,139.57,139.51,6.00277229]
[1726267765632,3.5814,139.54,139.5,3.5821]
[1726267765847,3.5814,139.54,139.51,6.00384799]
[1726267766124,3.5814,139.54,139.5,3.5821]
[1726267766635,3.5816,139.53,139.51,6.00368682]
[1726267766832,3.5816,139.53,139.49,3.5823]
[1726267767135,3.5816,139.53,139.5,6.00311001]
[1726267767320,3.5816,139.53,139.51,6.00311001]
[1726267767522,3.5816,139.53,139.5,3.5822]
[1726267767923,3.5816,139.53,139.51,6.0031085]
[1726267768133,3.5816,139.53,139.5,3.5822]
[1726267768432,3.5816,139.53,139.51,6.00261588]
[1726267768731,3.5816,139.53,139.5,3.5822]
[1726267768934,3.5816,139.53,139.51,6.00373278]
[1726267769126,3.5816,139.53,139.5,3.5822]
[1726267769326,3.5816,139.53,139.51,6.00372401]
[1726267769532,3.5816,139.53,139.5,3.5822]
[1726267769832,3.5816,139.53,139.51,6.00271675]
[1726267770134,3.5816,139.53,139.5,3.5822]
[1726267770331,3.5816,139.53,139.51,6.00255334]
[1726267770626,3.5816,139.53,139.5,3.5822]
[1726267770834,3.5816,139.53,139.51,6.00260708]
[1726267771029,3.5816,139.53,139.5,3.5822]
[1726267771332,3.5816,139.53,139.51,6.00273357]
[1726267771533,3.5816,139.53,139.5,3.5822]
[1726267771732,3.5816,139.53,139.51,6.00273357]
[1726267771938,3.5816,139.53,139.5,3.5822]
[1726267772435,3.5816,139.53,139.51,6.0027683]
[1726267772627,3.5816,139.53,139.5,3.5822]
[1726267772829,3.5813,139.54,139.51,9.5855314]
[1726267773027,3.5813,139.54,139.51,3.5819]
[1726267778731,3.5813,139.54,139.47,6.38007405]
[1726267778937,3.5808,139.56,139.48,6.0042423]
[1726267779236,3.52168841,139.56,139.49,6.0042423]
[1726267779435,3.52168841,139.56,139.5,6.0042423]
[1726267779436,21.51,139.56,139.5,6.0042423]
[1726267779644,21.51,139.54,139.47,3.61806015]
[1726267779830,1.3176,139.53,139.48,6.00756187]
[1726267780027,1.3176,139.53,139.49,6.00756187]
[1726267780226,1.3176,139.53,139.47,7.12813352]
[1726267780431,21.51,139.52,139.48,6.00896651]
[1726267780628,21.51,139.52,139.47,7.12813352]
[1726267780831,21.51,139.52,139.48,6.00856422]
[1726267781239,22.9361,139.52,139.46,3.5832]
[1726267781441,1.4261,139.52,139.47,6.00802981]
[1726267781641,3.5827,139.49,139.46,3.5832]
[1726267781939,3.5827,139.49,139.47,6.00975363]
[1726267782140,3.5827,139.49,139.46,3.5832]
[1726267782335,3.5827,139.49,139.47,6.00976457]
[1726267782535,3.5827,139.49,139.46,3.5832]
[1726267782841,3.5827,139.49,139.47,6.01031487]
[1726267783040,3.5827,139.49,139.46,3.5832]
[1726267783236,3.5827,139.49,139.47,6.01020746]
[1726267783437,3.5827,139.49,139.46,3.5832]
[1726267783642,3.5827,139.49,139.47,6.00970144]
[1726267783842,3.5827,139.49,139.46,3.5832]
[1726267784038,3.5828,139.48,139.47,6.00970144]